bitfinex/quotes_ETHUSD_20241231
["timestamp","ask_amount","ask_price","bid_price","bid_amount"]
[1735613714255,0.4392,3350.9,3350.1,2.71927084]
[1735613714487,0.4392,3351.1,3350.9,2.98425]
[1735613714891,0.4392,3351.1,3350.4,3.52757084]
[1735613715200,0.83562519,3351.1,3350.6,2.98453]
[1735613715405,0.39642519,3351.0,3350.4,2.98471]
[1735613716367,0.39642519,3351.0,3350.0,0.379348]
[1735613716623,0.4392,3350.9,3350.1,2.9849]
[1735613716755,0.4392,3350.9,3350.2,2.98485]
[1735613716956,0.4392,3350.9,3349.8,0.8083]
[1735613717299,0.4392,3350.9,3350.3,2.98478]
[1735613717473,0.79014276,3350.9,3350.0,2.985]
[1735613717825,0.4392,3350.7,3349.4,0.7607]
[1735613718104,0.83562519,3350.7,3349.4,0.7607]
[1735613718307,1.22934276,3350.7,3349.4,3.7607]
[1735613719058,0.83562519,3350.6,3349.5,2.98552]
[1735613719287,0.4392,3350.4,3349.3,3.0]
[1735613719511,0.4392,3350.4,3349.7,2.98533]
[1735613720414,0.83562519,3350.4,3349.7,2.98533]
[1735613723666,0.83562519,3350.4,3349.2,3.74643]
[1735613723868,0.83562519,3350.4,3349.6,2.98541]
[1735613724068,0.4392,3350.2,3349.4,2.98559]
[1735613724383,0.83562519,3350.2,3349.4,2.98559]
[1735613724714,0.4392,3350.1,3348.9,3.75098]
[1735613724860,0.4392,3350.1,3349.2,2.98576]
[1735613725061,0.4392,3350.0,3348.9,0.765]
[1735613725261,0.79014276,3350.0,3349.0,2.98595]
[1735613725506,0.4392,3349.8,3349.0,2.98595]
[1735613727086,0.4392,3349.6,3348.3,2.00347407]
[1735613727394,0.4392,3349.5,3348.5,2.98639]
[1735613727801,0.4392,3349.5,3348.3,1.23847407]
[1735613727802,0.4392,3349.3,3348.3,1.23847407]
[1735613727986,0.4392,3349.3,3348.7,2.98619]
[1735613729755,0.4392,3349.3,3348.5,0.765]
[1735613729916,0.4392,3349.3,3349.0,2.98595]
[1735613731895,0.4392,3349.3,3348.8,2.98612]
[1735613732376,0.4392,3349.3,3348.6,2.9863]
[1735613732743,0.4392,3349.3,3348.1,2.9867]
[1735613732949,0.4392,3349.3,3348.4,2.98647]
[1735613735082,3.0,3349.3,3348.2,2.98666]
[1735613735291,0.4392,3349.2,3348.2,2.98666]
[1735613735937,0.4392,3349.2,3348.3,2.98656]
[1735613736140,0.4392,3349.0,3348.3,2.98656]
[1735613740891,0.82276252,3349.0,3348.3,2.98656]
[1735613741061,0.82276252,3349.0,3348.4,2.98647]
[1735613742996,0.82276252,3349.0,3348.5,2.98637]
[1735613743149,0.4392,3349.0,3348.1,2.98676]
[1735613743349,0.4392,3349.0,3348.2,2.98667]
[1735613743549,0.4392,3349.0,3348.5,2.98636]
[1735613745908,0.4392,3349.0,3348.0,3.48427084]
[1735613746110,0.4392,3349.0,3348.8,2.98612]
[1735613746543,0.4392,3349.0,3348.6,2.98631]
[1735613746682,0.4392,3349.0,3348.3,2.98652]
[1735613747299,0.4392,3349.0,3348.6,2.98627]
[1735613747497,0.4392,3349.0,3348.4,2.98648]
[1735613748116,0.4392,3349.0,3348.2,2.98666]
[1735613749615,0.4392,3349.0,3348.3,2.98657]
[1735613749920,0.4392,3349.0,3348.4,2.98649]
[1735613752384,0.4392,3349.0,3348.2,2.98661]
[1735613752587,0.82276252,3349.0,3348.3,2.9865]
[1735613752914,0.4392,3349.0,3348.3,2.9865]
[1735613753839,0.4392,3349.0,3348.3,2.98658]
[1735613757278,0.4392,3349.0,3348.0,2.98685]
[1735613757825,0.4392,3349.0,3348.4,2.98648]
[1735613760525,0.4392,3349.0,3348.2,2.98666]
[1735613760694,0.4392,3349.0,3348.3,2.98655]
[1735613762280,0.4392,3348.9,3347.8,0.8012]
[1735613762490,0.4392,3348.9,3348.2,2.9866]
[1735613764080,0.83562519,3348.9,3348.2,2.9866]
[1735613764295,0.39642519,3348.9,3348.2,2.9866]
[1735613764642,0.4392,3348.8,3348.2,2.9866]
[1735613765432,0.4392,3348.8,3348.0,2.98684]
[1735613765728,0.4392,3348.6,3347.8,2.98702]
[1735613765916,0.42293597,3348.5,3347.8,2.98702]
[1735613766074,0.4392,3348.4,3347.8,2.98702]
[1735613768437,0.4392,3348.4,3347.6,2.98719]
[1735613771317,0.4392,3348.4,3347.7,2.9871]
[1735613772938,0.4392,3348.4,3347.5,2.9873]
[1735613773138,0.4392,3348.4,3347.9,2.98692]
[1735613774146,0.4392,3348.4,3347.7,2.98712]
[1735613774687,0.4392,3348.3,3347.7,2.98712]
[1735613775686,0.4392,3348.3,3347.7,2.98708]
[1735613778906,0.4392,3348.3,3347.5,0.7569]
[1735613779114,0.4392,3348.3,3347.9,2.98694]
[1735613779751,0.4392,3348.3,3348.0,2.98685]
[1735613780403,0.4392,3348.3,3347.7,2.98704]
[1735613781559,0.4392,3348.3,3347.8,2.98703]
[1735613784924,0.4392,3348.3,3347.1,3.95774491]
[1735613785208,0.4392,3348.2,3347.2,0.8043]
[1735613786567,0.4392,3348.2,3347.5,2.98728]
[1735613787807,0.4392,3348.2,3347.2,0.8043]
[1735613788013,0.4392,3348.2,3347.6,2.9872]
[1735613788308,0.4392,3348.2,3347.7,2.98704]
[1735613788515,0.4392,3348.2,3347.6,0.29872]
[1735613788663,0.4392,3348.2,3347.7,0.8043]
[1735613789726,0.4392,3348.2,3347.9,2.9869]
[1735613790644,0.4392,3348.2,3347.7,2.98705]
[1735613790772,0.4392,3348.2,3347.4,0.8043]
[1735613790973,0.4392,3348.2,3347.5,0.02986754]
[1735613791223,0.4392,3348.2,3347.7,2.98705]
[1735613791524,0.4392,3348.2,3347.8,2.98702]
[1735613792624,0.4392,3348.2,3347.9,2.9869]
[1735613802347,0.4392,3348.2,3347.7,2.98707]
[1735613807208,0.4392,3348.2,3347.8,2.98699]
[1735613807826,2.51006691,3348.4,3347.9,2.98692]
[1735613808724,2.94926691,3348.5,3347.9,2.98692]
[1735613809051,4.02374849,3348.5,3347.9,2.98692]
[1735613810254,4.02374849,3348.5,3347.7,2.9871]
[1735613810752,0.4392,3348.3,3347.7,2.9871]
[1735613812831,2.94926691,3348.3,3347.7,2.9871]
[1735613813031,2.51006691,3348.3,3347.7,2.9871]
[1735613813233,0.4392,3348.2,3347.5,2.98727]
[1735613813433,0.4392,3348.1,3347.4,1.23847407]
[1735613813683,0.83562519,3348.1,3347.4,1.23847407]
[1735613813832,0.4392,3348.0,3347.4,1.23847407]
[1735613814034,0.4392,3348.0,3347.3,4.22594407]
[1735613814479,0.4392,3348.0,3347.4,2.98738]
[1735613815355,2.94926691,3348.0,3347.4,2.98738]
[1735613815674,4.04435173,3348.0,3347.4,2.98738]
[1735613818039,0.4392,3347.9,3347.4,2.98738]
[1735613818237,0.4392,3347.9,3347.2,2.98754]
[1735613818577,0.4392,3347.9,3347.3,2.98746]
[1735613819202,0.4392,3347.8,3347.1,2.98765]
[1735613819403,0.4392,3347.7,3347.1,2.98765]
[1735613822972,0.4392,3347.7,3346.8,0.7779]
[1735613823226,0.4392,3347.7,3346.8,2.98784]
[1735613823376,1.72822903,3347.6,3346.8,2.98784]
[1735613823574,0.4392,3347.4,3346.8,2.98784]
[1735613823910,0.4392,3347.4,3346.9,2.98782]
[1735613824930,0.4392,3347.4,3346.6,0.7779]
[1735613825135,0.4392,3347.4,3346.7,2.98799]
[1735613825503,3.4392,3347.4,3346.7,2.98799]
[1735613825802,4.51395064,3347.4,3346.7,2.98799]
[1735613826860,1.72822903,3347.3,3346.2,1.23847407]
[1735613827166,1.72822903,3347.3,3346.6,2.98809]
[1735613827331,1.72822903,3347.3,3346.1,2.5275031]
[1735613827536,1.72822903,3347.3,3346.6,2.98807]
[1735613827737,2.55953369,3347.3,3346.6,2.98807]
[1735613828565,2.55953369,3347.3,3346.7,2.98801]
[1735613830369,1.27050466,3347.3,3346.7,2.98801]
[1735613830839,2.12033369,3347.3,3346.5,2.98817]
[1735613831040,0.4392,3347.2,3346.5,2.98817]
[1735613832269,1.28902903,3346.7,3346.3,2.98835]
[1735613832464,0.83562519,3347.1,3346.1,2.10492903]
[1735613832667,0.4392,3347.1,3346.6,2.9881]
[1735613833765,1.28902903,3346.7,3346.2,2.98844]
[1735613833972,0.4392,3346.9,3346.1,1.28902903]
[1735613834182,0.4392,3346.9,3346.5,2.98817]
[1735613836705,0.4392,3346.9,3346.1,0.8159]
[1735613836909,0.4392,3346.9,3346.4,2.98828]
[1735613840510,0.4392,3346.9,3346.2,2.98844]
[1735613841911,0.4392,3346.8,3346.2,2.98844]
[1735613842271,0.21246542,3346.8,3346.2,2.98844]
[1735613842476,0.4392,3346.7,3346.2,2.98844]
[1735613844176,0.4392,3346.7,3346.3,2.98834]
[1735613845405,0.4392,3346.7,3346.1,2.9885]
[1735613845741,0.4392,3346.7,3345.8,2.04972903]
[1735613845742,0.4392,3346.7,3346.3,2.98833]
[1735613846244,0.4392,3347.0,3346.4,1.28902903]
[1735613846545,0.4392,3347.0,3346.8,2.9879]
[1735613849767,0.4392,3347.5,3347.1,2.98765]
[1735613850835,0.4392,3347.5,3347.2,2.98756]
[1735613851260,0.4392,3347.7,3347.2,2.98756]
[1735613852427,0.4392,3347.7,3346.9,0.7607]
[1735613852626,0.4392,3347.7,3347.3,2.98747]
[1735613853911,0.4392,3347.7,3347.4,2.98738]
[1735613860390,0.39642519,3347.8,3346.3,1.74227997]
[1735613860391,0.4392,3347.9,3347.5,2.98722]
[1735613860920,2.51006691,3348.1,3347.4,1.28902903]
[1735613861219,2.51006691,3348.1,3347.8,2.98701]
[1735613861600,2.94926691,3348.2,3347.8,2.98701]
[1735613862634,0.4392,3348.2,3347.8,2.98701]
[1735613863172,0.4392,3348.2,3347.8,3.77331]
[1735613863368,3.4392,3348.4,3347.8,3.77331]
[1735613863580,3.4392,3348.4,3347.8,0.7863]
[1735613863919,3.4392,3348.4,3347.9,2.98686]
[1735613866039,0.4392,3348.4,3347.9,2.98686]
[1735613867038,0.4392,3348.4,3348.0,2.98684]
[1735613867237,2.51006691,3348.6,3348.2,3.77294]
[1735613867438,2.51006691,3348.6,3348.3,2.98658]
[1735613868146,3.0,3348.8,3348.3,2.98658]
[1735613870435,0.4392,3348.9,3348.3,2.98658]
[1735613870936,0.4392,3348.9,3348.4,2.9865]
[1735613877213,0.4392,3348.9,3348.3,0.377288]
[1735613877214,0.39642519,3349.0,3348.5,2.98633]
[1735613880854,0.39642519,3349.0,3348.3,0.377288]
[1735613881062,0.4392,3349.5,3348.6,0.7822]
[1735613881215,0.4392,3349.5,3349.0,2.98592]
[1735613882159,0.4392,3349.5,3349.1,2.98586]
[1735613882371,0.83562519,3349.8,3349.3,2.98562]
[1735613883886,3.0,3350.1,3349.5,2.98547]
[1735613883887,0.4392,3350.1,3349.5,2.98547]
[1735613884891,0.4392,3350.1,3349.5,3.76767]
[1735613885201,1.28902903,3350.0,3349.5,3.76767]
[1735613887896,0.83562519,3350.1,3349.6,2.98542]
[1735613888691,0.39642519,3350.1,3349.6,0.36849207]
[1735613888868,0.39642519,3350.1,3349.8,2.98522]
[1735613889352,0.4392,3350.3,3349.8,2.98522]
[1735613889548,0.4392,3350.3,3349.5,0.7822]
[1735613889771,0.4392,3350.3,3349.9,2.98515]
[1735613892565,1.28902903,3350.2,3349.5,0.7822]
[1735613892767,1.28902903,3350.0,3349.3,2.98564]
[1735613893267,1.68545422,3350.0,3349.3,2.98564]
[1735613893663,0.39642519,3350.0,3349.5,2.9855]
[1735613893867,0.4392,3350.1,3349.2,0.7773]
[1735613894109,0.4392,3350.1,3349.6,3.7627]
[1735613897555,0.4392,3350.1,3349.2,2.98573]
[1735613897556,0.4392,3350.1,3349.3,3.76295]
[1735613897694,0.83562519,3350.1,3349.3,3.76295]
[1735613898025,1.78970687,3350.1,3349.3,3.76295]
[1735613898849,1.78970687,3350.1,3348.6,6.7448517]
[1735613898850,3.4392,3349.9,3349.1,3.76316]
[1735613899060,0.4392,3349.8,3348.9,2.98603]
[1735613899344,0.83562519,3349.8,3349.0,2.98595]
[1735613899548,0.79015971,3349.8,3348.8,0.7773]
[1735613899757,1.38877513,3349.7,3348.8,0.7773]
[1735613900188,1.38877513,3349.7,3349.0,2.98595]
[1735613905211,0.4392,3349.7,3348.8,0.7773]
[1735613905942,0.4392,3349.7,3349.1,2.98585]
[1735613907933,0.4392,3349.7,3348.8,0.7773]
[1735613908140,0.4392,3349.7,3349.2,2.98577]
[1735613910776,0.4392,3349.6,3348.8,0.7773]
[1735613911432,0.4392,3349.5,3349.0,2.98595]
[1735613912235,0.86111877,3349.5,3349.0,2.98595]
[1735613913433,0.86111877,3349.5,3348.7,2.98616]
[1735613913779,0.42191877,3349.5,3348.5,0.7877]
[1735613914012,0.4392,3348.9,3348.1,2.98673]
[1735613914140,0.61596616,3348.8,3348.1,2.98673]
[1735613914341,0.4392,3348.7,3348.1,2.98673]
[1735613915850,0.4392,3348.7,3347.8,3.77467]
[1735613916519,0.4392,3348.7,3348.0,2.98677]
[1735613918559,0.4392,3348.6,3347.5,3.81573]
[1735613918767,0.4392,3348.6,3347.8,2.98701]
[1735613919508,0.4392,3348.6,3347.9,2.98692]
[1735613922811,0.4392,3348.6,3348.0,2.98684]
[1735613922988,0.4392,3348.6,3347.7,2.98707]
[1735613923162,0.4392,3348.6,3347.3,7.3285]
[1735613923365,0.4392,3348.6,3347.4,2.98739]
[1735613923707,0.4392,3348.6,3347.9,2.98693]
[1735613925034,0.83562519,3348.6,3347.9,2.98693]
[1735613925542,0.4392,3348.4,3347.7,2.98711]
[1735613925696,0.4392,3348.4,3347.4,2.98739]
[1735613925902,0.4392,3348.4,3347.8,2.98703]
[1735613926447,0.4392,3348.3,3347.5,2.98722]
[1735613926738,0.4392,3348.2,3347.5,2.98722]
[1735613926923,0.39642519,3348.2,3347.5,2.98722]
[1735613927248,0.4392,3348.1,3347.5,2.98722]
[1735613927427,0.4392,3348.0,3347.1,2.98758]
[1735613927611,0.4392,3348.0,3347.1,0.680398]
[1735613928445,0.4392,3348.0,3347.4,2.98732]
[1735613928642,0.4392,3348.0,3347.6,2.98717]
[1735613929102,0.4392,3348.5,3347.8,2.98701]
[1735613929412,0.83562519,3348.5,3347.8,2.98701]
[1735613929616,1.78161401,3348.5,3347.8,2.98701]
[1735613929818,0.39642519,3348.4,3347.8,2.98701]
[1735613930643,0.39642519,3348.4,3347.9,2.98694]
[1735613931206,0.4392,3348.3,3347.6,2.9872]
[1735613931446,0.39642519,3348.2,3347.6,2.9872]
[1735613931849,0.4392,3348.1,3347.2,2.98757]
[1735613932073,0.83562519,3348.0,3347.2,2.98757]
[1735613932668,0.4392,3347.9,3347.0,3.81623]
[1735613932972,0.4392,3347.8,3347.0,2.98773]
[1735613933379,0.4392,3347.8,3346.8,0.7888]
[1735613933578,0.4392,3347.8,3347.1,2.98765]
[1735613936463,0.4392,3347.8,3347.3,2.98746]
[1735613937198,0.4392,3348.0,3347.3,1.087546]
[1735613937491,0.4392,3348.0,3347.5,2.98722]
[1735613938059,0.4392,3348.4,3347.4,0.7679]
[1735613938393,0.4392,3348.4,3348.1,2.98676]
[1735613938769,3.4392,3348.8,3348.2,2.9866]
[1735613939106,0.4392,3348.8,3348.3,2.98658]
[1735613939396,0.39642519,3348.9,3348.6,2.98624]
[1735613939805,0.4392,3349.1,3348.1,0.37847464]
[1735613940000,0.4392,3349.1,3348.0,7.2679]
[1735613940204,0.4392,3349.1,3348.3,2.98655]
[1735613941530,0.4392,3349.1,3348.6,2.98623]
[1735613942232,0.4392,3349.1,3348.0,3.48836157]
[1735613942432,0.39642519,3349.3,3348.8,2.98609]
[1735613942633,0.39642519,3349.3,3348.3,3.48836157]
[1735613942834,0.4392,3349.7,3348.9,0.7679]
[1735613943062,0.4392,3349.7,3349.3,2.98568]
[1735613944541,0.39642519,3349.8,3348.9,0.7679]
[1735613944743,0.4392,3350.0,3349.5,2.98543]
[1735613945040,0.4392,3350.3,3349.3,0.7679]
[1735613945242,0.4392,3350.3,3349.9,2.98515]
[1735613945727,0.4392,3350.3,3350.0,2.98507]
[1735613945929,0.39642519,3350.4,3350.0,2.98507]
[1735613951083,0.39642519,3350.4,3349.5,2.98552]
[1735613951380,0.39642519,3350.4,3349.4,0.37756319]
[1735613951584,0.39642519,3350.4,3349.7,2.98531]
[1735613951791,0.77998771,3350.4,3349.7,2.98531]
[1735613952005,0.77998771,3350.4,3349.8,2.98525]
[1735613953158,0.4392,3350.6,3349.4,0.37756319]
[1735613953332,0.4392,3350.6,3349.8,2.98516]
[1735613953529,0.83562519,3350.6,3349.8,2.98516]
[1735613954098,0.39642519,3350.5,3349.8,2.98516]
[1735613955394,0.4392,3350.4,3349.6,2.98542]
[1735613955747,1.25856116,3350.4,3349.6,2.98542]
[1735613955947,1.25856116,3350.4,3349.3,0.7679]
[1735613956254,0.83562519,3350.4,3349.4,2.9856]
[1735613956406,0.83562519,3350.4,3349.5,2.98548]
[1735613956612,0.39642519,3350.3,3349.5,2.98548]
[1735613957146,0.4392,3350.2,3349.2,2.98575]
[1735613957352,0.4392,3350.0,3349.0,2.9859]
[1735613957493,1.13418213,3349.9,3349.0,2.9859]
[1735613957694,1.92434184,3349.9,3349.0,2.9859]
[1735613957911,0.4392,3349.7,3348.8,2.98613]
[1735613958113,0.39642519,3349.6,3348.3,7.3326]
[1735613958335,1.58822339,3349.6,3348.8,2.98613]
[1735613958774,1.58822339,3349.6,3348.9,2.98603]
[1735613962264,1.58822339,3349.6,3348.3,0.8326]
[1735613962433,0.4392,3349.5,3348.7,2.98615]
[1735613962768,0.43059185,3349.4,3348.9,2.98605]
[1735613964831,0.4392,3349.5,3349.0,2.98595]
[1735613965350,0.4392,3349.5,3349.1,2.98579]
[1735613966427,0.4392,3349.5,3349.1,2.98584]
[1735613967268,0.4392,3349.5,3349.1,2.98583]
[1735613968369,0.4392,3349.8,3349.1,0.298583]
[1735613968667,0.4392,3350.4,3350.0,2.98503]
[1735613969488,0.90004185,3350.4,3349.8,2.98523]
[1735613969894,0.46084185,3350.3,3349.8,2.98523]
[1735613971257,0.46084185,3350.3,3349.3,0.788]
[1735613971435,0.88815971,3350.3,3349.3,0.788]
[1735613971893,0.88815971,3350.3,3349.6,2.98541]
[1735613977352,1.32089568,3350.3,3349.6,2.98541]
[1735613980433,0.42731786,3350.2,3349.0,0.7773]
[1735613980600,0.4392,3350.1,3349.0,0.7773]
[1735613980944,0.90004185,3350.1,3349.0,0.7773]
[1735613981416,0.90004185,3350.1,3349.3,2.98568]
[1735613981620,1.60482398,3350.1,3349.3,2.98568]
[1735613982986,1.60482398,3350.1,3349.4,2.9856]
[1735613984997,1.60482398,3350.1,3349.0,0.7773]
[1735613984998,0.4392,3350.0,3349.2,2.98577]
[1735613985202,0.46084185,3349.9,3349.2,2.98577]
[1735613988635,0.46084185,3349.9,3349.4,2.98558]
[1735613989658,0.46084185,3349.9,3349.2,0.376307]
[1735613989835,0.46084185,3349.9,3349.5,2.9855]
[1735613990232,0.4392,3349.8,3349.0,3.76318]
[1735613990547,0.4392,3349.8,3349.5,2.98551]
[1735613991218,0.90004185,3349.8,3349.2,2.98571]
[1735613991537,0.90004185,3349.8,3349.3,2.98569]
[1735613993615,0.90004185,3349.7,3349.0,2.98595]
[1735613993835,1.32735971,3349.7,3349.1,2.98586]
[1735613994236,0.4392,3349.6,3348.8,2.98607]
[1735613994418,0.46084185,3349.5,3348.8,2.98607]
[1735613994604,0.4392,3349.4,3348.8,2.98607]
[1735613994941,0.90004185,3349.4,3348.8,2.98607]
[1735613995141,0.4392,3349.4,3348.8,2.98607]
[1735613995346,0.46084185,3349.3,3348.8,2.98607]
[1735613995667,0.86651786,3349.2,3348.6,2.98629]
[1735613995878,0.46084185,3349.1,3348.6,2.98629]
[1735613997149,0.46084185,3349.1,3348.6,0.298629]
[1735613997393,0.46084185,3349.1,3348.7,2.98621]
[1735613997893,0.46084185,3349.1,3348.5,2.98638]
[1735613998435,0.46084185,3349.1,3348.6,2.98628]
[1735614001420,0.4392,3349.4,3349.1,2.98587]
[1735614001629,2.94926691,3349.4,3348.9,2.98604]
[1735614002727,0.4392,3349.4,3348.9,2.98604]
[1735614002924,0.88815971,3349.3,3348.6,2.98626]
[1735614003227,0.4392,3349.2,3348.6,2.98626]
[1735614003545,0.46084185,3349.1,3348.6,2.98626]
[1735614006541,0.46084185,3349.1,3348.3,0.8239]
[1735614006696,0.46084185,3349.1,3348.4,2.98648]
[1735614007299,0.4392,3349.0,3348.2,2.98666]
[1735614007479,0.4392,3349.0,3348.2,0.02986308]
[1735614007798,0.4392,3349.0,3348.1,6.50018157]
[1735614008010,0.4392,3349.0,3348.4,2.98643]
[1735614009364,0.46084185,3348.9,3348.2,2.98665]
[1735614013269,0.46084185,3348.9,3348.3,2.98656]
[1735614015955,0.4392,3349.3,3348.7,2.98615]
[1735614016269,0.4392,3349.3,3348.9,2.98605]
[1735614016853,1.32735971,3349.6,3348.7,3.37042273]
[1735614017166,0.90004185,3349.6,3349.1,2.98582]
[1735614017486,0.46084185,3349.5,3348.9,2.98603]
[1735614017687,0.46084185,3349.5,3348.9,3.42892912]
[1735614019155,0.46084185,3349.5,3348.7,2.98618]
[1735614019356,0.46084185,3349.5,3348.4,2.98641]
[1735614019357,0.4392,3349.3,3348.4,2.98641]
[1735614019538,0.88815971,3349.2,3348.3,6.5]
[1735614019736,0.4392,3349.1,3348.2,2.9866]
[1735614019981,3.88815971,3349.0,3348.1,1.23847407]
[1735614020296,3.42535,3348.8,3348.1,1.23847407]
[1735614020439,0.86651786,3348.7,3348.1,1.23847407]
[1735614020637,0.4392,3348.6,3347.8,2.987]
[1735614020887,0.4392,3348.6,3347.8,0.69459356]
[1735614021392,0.90004185,3348.6,3348.0,2.98685]
[1735614022036,0.90004185,3348.6,3347.8,3.68161356]
[1735614022694,0.90004185,3348.6,3347.9,2.9869]
[1735614022987,0.90004185,3348.6,3347.8,0.69459356]
[1735614023133,0.90004185,3348.6,3348.0,2.98684]
[1735614023336,2.94926691,3348.9,3348.5,2.98641]
[1735614023576,2.51006691,3348.9,3348.6,2.98631]
[1735614023939,2.51006691,3348.9,3348.1,9.22046157]
[1735614024301,0.4392,3349.2,3348.4,2.98649]
[1735614024432,0.46084185,3349.1,3348.4,2.98649]
[1735614024637,0.46084185,3349.1,3348.5,2.98641]
[1735614025235,0.46084185,3349.1,3348.3,2.98657]
[1735614025435,0.46084185,3349.1,3347.9,6.5]
[1735614025436,0.86651786,3349.0,3348.1,2.98675]
[1735614025746,0.90004185,3348.9,3348.1,2.98675]
[1735614026098,1.32735971,3348.9,3348.1,2.98675]
[1735614028208,1.32735971,3348.9,3348.2,2.98666]
[1735614031253,1.32735971,3348.9,3348.0,2.98683]
[1735614031417,0.86651786,3348.8,3348.0,2.98683]
[1735614031618,0.46084185,3348.7,3348.0,2.98683]
[1735614031818,0.46084185,3348.7,3347.8,2.72046157]
[1735614032356,0.4392,3348.8,3348.0,2.98685]
[1735614032651,0.90004185,3349.0,3348.7,2.98622]
[1735614037020,0.4392,3349.3,3348.4,3.51236157]
[1735614037240,0.4392,3349.3,3349.0,2.98591]
[1735614037565,2.97090876,3349.5,3349.2,2.98578]
[1735614038223,0.46084185,3349.5,3349.2,2.98578]
[1735614038426,0.46084185,3349.5,3349.0,0.7782]
[1735614038626,0.46084185,3349.5,3349.0,3.76414]
[1735614038958,0.46084185,3349.5,3349.0,2.98594]
[1735614040973,0.46084185,3349.5,3348.8,0.7594]
[1735614041273,2.51006691,3349.8,3349.1,3.74527]
[1735614041482,2.51006691,3349.8,3349.5,2.98549]
[1735614042152,0.4392,3349.9,3349.5,2.98549]
[1735614043570,0.4392,3349.9,3349.1,10.24527]
[1735614043571,0.4392,3349.9,3349.6,2.98542]
[1735614044122,0.4392,3349.9,3349.1,7.2594]
[1735614044323,0.90004185,3349.9,3349.4,2.9856]
[1735614044970,0.46084185,3349.8,3349.1,2.9858]
[1735614045174,0.88815971,3349.8,3349.1,2.9858]
[1735614048211,0.88815971,3349.8,3349.3,2.98565]
[1735614050127,0.88815971,3349.8,3349.0,2.98588]
[1735614050340,0.4392,3349.7,3349.2,2.98578]
[1735614052676,0.90004185,3349.7,3349.2,2.98578]
[1735614054075,0.90004185,3349.7,3348.8,0.7594]
[1735614054265,0.46084185,3349.6,3349.0,2.98594]
[1735614055079,0.4392,3349.5,3349.0,2.98594]
[1735614055581,0.90004185,3349.5,3348.7,2.98616]
[1735614055883,0.4392,3349.3,3348.2,1.23847407]
[1735614056087,0.88815971,3349.2,3348.2,1.23847407]
[1735614056240,0.4392,3349.1,3348.2,1.23847407]
[1735614056584,0.4392,3348.9,3348.0,7.73847407]
[1735614056789,0.4392,3348.9,3348.2,2.98667]
[1735614057652,0.90004185,3348.9,3348.2,2.98667]
[1735614059135,0.46084185,3348.8,3348.0,2.98683]
[1735614059341,0.4392,3348.7,3348.0,2.98683]
[1735614059543,0.90004185,3348.7,3348.0,2.98683]
[1735614060014,0.90004185,3348.7,3348.1,3.0]
[1735614060793,0.4392,3348.7,3348.1,0.6285476]
[1735614060955,0.4392,3348.7,3348.2,0.7533]
[1735614061301,0.4392,3348.7,3348.4,2.98649]
[1735614062084,0.4392,3348.7,3348.2,3.73996]
[1735614062289,0.4392,3348.7,3348.3,2.98658]
[1735614062638,0.4392,3348.7,3347.9,6.74017]
[1735614062639,0.4392,3348.7,3347.9,3.7533]
[1735614062848,0.90004185,3348.7,3348.1,2.98675]
[1735614064693,0.90004185,3348.7,3347.9,2.98693]
[1735614065260,0.90004185,3348.6,3347.7,3.7404]
[1735614065465,0.4392,3348.5,3347.7,2.9871]
[1735614065667,0.90004185,3348.5,3347.7,2.9871]
[1735614065980,0.46084185,3348.4,3347.7,2.9871]
[1735614066500,0.46084185,3348.4,3347.5,0.7533]
[1735614066795,0.46084185,3348.4,3347.8,2.98703]
[1735614070805,0.46084185,3348.4,3348.0,2.98684]
[1735614070983,0.4392,3348.5,3348.0,2.98684]
[1735614071551,0.4392,3348.8,3347.8,2.72046157]
[1735614071768,0.4392,3348.8,3348.3,2.98655]
[1735614073900,0.4392,3348.8,3347.9,2.98691]
[1735614073901,0.46084185,3348.7,3348.1,2.98674]
[1735614075113,0.4392,3348.6,3347.9,2.98693]
[1735614075423,0.4392,3348.6,3347.6,0.674075]
[1735614075424,0.4392,3348.5,3347.6,0.674075]
[1735614075563,0.4392,3348.4,3347.6,0.674075]
[1735614075763,0.4392,3348.4,3347.6,3.661275]
[1735614075965,0.4392,3348.4,3347.4,2.98737]
[1735614076160,0.4392,3348.2,3347.2,2.98754]
[1735614076465,0.88815971,3348.1,3347.2,2.98754]
[1735614076659,0.4392,3348.0,3347.2,2.98754]
[1735614076883,0.90004185,3348.0,3347.2,2.98754]
[1735614080413,0.46084185,3347.9,3347.2,2.98754]
[1735614080617,0.4392,3347.8,3347.2,2.98754]
[1735614081004,0.4392,3347.8,3346.9,6.52126157]
[1735614081189,0.4392,3347.8,3347.3,2.98742]
[1735614081790,0.4392,3347.8,3347.4,2.98738]
[1735614083093,0.46084185,3347.7,3347.1,2.98757]
[1735614084144,0.4392,3347.6,3346.7,2.98801]
[1735614084289,0.90004185,3347.6,3346.6,3.52326157]
[1735614084489,0.90004185,3347.5,3346.9,2.98783]
[1735614085103,0.90004185,3347.5,3347.0,2.98774]
[1735614086365,0.4392,3347.4,3346.6,2.98808]
[1735614086545,0.42731786,3347.4,3346.6,2.98808]
[1735614086749,0.4392,3347.2,3346.4,2.98825]
[1735614087038,0.4392,3347.2,3346.5,2.98819]
[1735614087248,0.4392,3347.2,3346.8,2.98786]
[1735614087906,0.4392,3347.2,3346.5,2.98812]
[1735614088104,0.90004185,3347.1,3346.2,2.98837]
[1735614088307,0.4392,3347.0,3346.3,2.98834]
[1735614088644,0.46084185,3346.9,3346.1,2.98854]
[1735614088944,0.4392,3346.8,3346.1,2.98854]
[1735614090543,0.4392,3346.7,3345.9,2.98872]
[1735614092226,0.90004185,3346.6,3345.7,2.9889]
[1735614092441,5.98836,3346.4,3345.4,0.0720391]
[1735614092597,0.4392,3346.2,3345.4,0.0720391]
[1735614092797,0.88815971,3346.1,3345.4,0.0720391]
[1735614093119,0.4392,3346.0,3345.4,0.0720391]
[1735614093455,0.4392,3345.8,3345.4,0.0720391]